fUSD/lending_fUSD_20240114
["ID","MTS","AMOUNT","RATE_DAILY","PERIOD"]
[311574550,1705252303353,-1136.11,0.0003178,2]
[311574551,1705252303363,-500.0,0.0003178,2]
[311574552,1705252303372,-647.22,0.0003178,2]
[311574553,1705252303382,-1382.37,0.0003178,2]
[311574554,1705252303391,-500.0,0.0003178,2]
[311574555,1705252303401,-836.86,0.0003178,2]
[311574556,1705252303411,-500.0,0.0003178,2]
[311574557,1705252303420,-500.0,0.0003178,2]
[311574558,1705252303430,-865.23,0.0003178,2]
[311574559,1705252303439,-500.0,0.0003178,2]
[311574560,1705252303449,-500.0,0.0003178,2]
[311574561,1705252303458,-500.0,0.0003178,2]
[311574562,1705252303468,-500.0,0.0003178,2]
[311574563,1705252303477,-863.21,0.0003178,2]
[311574564,1705252303486,-1116.11,0.0003178,2]
[311574565,1705252303497,-1335.88,0.0003178,2]
[311574566,1705252303506,-500.0,0.0003178,2]
[311574567,1705252303515,-1690.6,0.0003178,2]
[311574568,1705252303525,-1241.32,0.0003178,2]
[311574569,1705252303534,-1048.27,0.0003178,2]
[311574570,1705252303543,-2021.1,0.0003178,2]
[311574571,1705252303553,-1127.62,0.0003178,2]
[311574572,1705252303562,-500.0,0.0003178,2]
[311574573,1705252303573,-666.2,0.0003178,2]
[311574574,1705252303582,-835.47,0.0003178,2]
[311574575,1705252303592,-500.0,0.0003178,2]
[311574576,1705252303602,-1153.09,0.0003178,2]
[311574577,1705252303611,-720.99,0.0003178,2]
[311574578,1705252303621,-804.23,0.0003178,2]
[311574579,1705252303630,-500.0,0.0003178,2]
[311574580,1705252303639,-1037.19,0.0003178,2]
[311574581,1705252303649,-1078.01,0.0003178,2]
[311574582,1705252303658,-824.07,0.0003178,2]
[311574583,1705252303760,-1900.62,0.0003178,2]
[311574584,1705252303770,-2002.51,0.0003178,2]
[311574585,1705252303780,-678.83,0.0003178,2]
[311574586,1705252303789,-959.7,0.0003178,2]
[311574587,1705252303798,-500.0,0.0003178,2]
[311574588,1705252303807,-500.0,0.0003178,2]
[311574589,1705252303817,-500.0,0.0003178,2]
[311574590,1705252303829,-650.03,0.0003178,2]
[311574591,1705252303850,-522.86759908,0.0003178,2]
[311574592,1705252303864,-500.0,0.0003178,2]
[311574593,1705252303873,-1629.93,0.0003178,2]
[311574594,1705252303882,-1040.72,0.0003178,2]
[311574595,1705252303891,-1885.14,0.0003178,2]
[311574596,1705252303900,-2041.9,0.0003178,2]
[311574597,1705252303909,-500.0,0.0003178,2]
[311574598,1705252303918,-500.0,0.0003178,2]
[311574599,1705252303928,-500.0,0.0003178,2]
[311574600,1705252303937,-500.0,0.0003178,2]
[311574601,1705252303946,-500.0,0.0003178,2]
[311574602,1705252303955,-1619.28,0.0003178,2]
[311574603,1705252303964,-500.0,0.0003178,2]
[311574604,1705252303973,-820.3,0.0003178,2]
[311574605,1705252303982,-2023.36,0.0003178,2]
[311574606,1705252303991,-1307.54,0.0003178,2]
[311574607,1705252304000,-521.29875493,0.0003178,2]
[311574608,1705252304009,-662.33,0.0003178,2]
[311574609,1705252304018,-500.0,0.0003178,2]
[311574610,1705252304028,-539.781895,0.0003178,2]
[311574611,1705252304037,-350.76291136,0.0003178,2]
[311574612,1705252304046,-1167.96,0.0003178,2]
[311574613,1705252304055,-1114.79,0.0003178,2]
[311574614,1705252304065,-795.11,0.0003178,2]
[311574615,1705252304074,-500.0,0.0003178,2]
[311574616,1705252304082,-500.0,0.0003178,2]
[311574617,1705252304091,-500.0,0.0003178,2]
[311574618,1705252304100,-500.0,0.0003178,2]
[311574619,1705252304110,-576.46080222,0.0003178,2]
[311574620,1705252304119,-508.28,0.0003178,2]
[311574621,1705252304129,-500.0,0.0003178,2]
[311574622,1705252304138,-850.9,0.0003178,2]
[311574623,1705252304147,-823.12,0.0003178,2]
[311574624,1705252304156,-2060.81,0.0003178,2]
[311574625,1705252304165,-500.0,0.0003178,2]
[311574626,1705252304175,-1110.75,0.0003178,2]
[311574627,1705252304184,-709.7,0.0003178,2]
[311574628,1705252304193,-500.0,0.0003178,2]
[311574629,1705252304202,-500.0,0.0003178,2]
[311574630,1705252304211,-664.23,0.0003178,2]
[311574631,1705252304219,-1023.27,0.0003178,2]
[311574632,1705252304228,-733.79,0.0003178,2]
[311574633,1705252304237,-3195.49,0.0003178,2]
[311574634,1705252304246,-434.04242691,0.0003178,2]
[311574635,1705252304254,-1885.84,0.0003178,2]
[311574636,1705252304263,-500.0,0.0003178,2]
[311574637,1705252304272,-757.2,0.0003178,2]
[311574638,1705252304281,-500.0,0.0003178,2]
[311574639,1705252304290,-500.0,0.0003178,2]
[311574640,1705252304299,-500.0,0.0003178,2]
[311574641,1705252304308,-500.0,0.0003178,2]
[311574642,1705252304317,-863.68,0.0003178,2]
[311574643,1705252304326,-500.0,0.0003178,2]
[311574644,1705252304335,-500.0,0.0003178,2]
[311574645,1705252304344,-231.46769991,0.0003178,2]
[311574646,1705252304353,-829.78,0.0003178,2]
[311574647,1705252304366,-1020.24,0.0003178,2]
[311574648,1705252304375,-917.51,0.0003178,2]
[311574649,1705252304384,-1281.11,0.0003178,2]
[311574650,1705252304393,-500.0,0.0003178,2]
[311574651,1705252304403,-600.41,0.0003178,2]
[311574652,1705252304412,-1227.04,0.0003178,2]
[311574653,1705252304421,-500.0,0.0003178,2]
[311574654,1705252304430,-500.0,0.0003178,2]
[311574655,1705252304439,-500.0,0.0003178,2]
[311574656,1705252304448,-1999.83,0.0003178,2]
[311574657,1705252304457,-500.0,0.0003178,2]
[311574658,1705252304466,-746.49,0.0003178,2]
[311574659,1705252304475,-1132.45,0.0003178,2]
[311574660,1705252304484,-1460.45,0.0003178,2]
[311574661,1705252304493,-1320.94,0.0003178,2]
[311574662,1705252304502,-500.0,0.0003178,2]
[311574663,1705252304511,-722.68,0.0003178,2]
[311574664,1705252304520,-1205.87,0.0003178,2]
[311574665,1705252304530,-500.0,0.0003178,2]
[311574666,1705252304539,-500.0,0.0003178,2]
[311574667,1705252304548,-1773.28,0.0003178,2]
[311574668,1705252304557,-563.75,0.0003178,2]
[311574669,1705252304565,-500.0,0.0003178,2]
[311574670,1705252304574,-810.08,0.0003178,2]
[311574671,1705252304583,-895.09,0.0003178,2]
[311574672,1705252304592,-1207.56,0.0003178,2]
[311574673,1705252304601,-167.259555,0.0003178,7]
[311574674,1705252304610,-500.0,0.0003178,2]
[311574675,1705252304619,-1058.04,0.0003178,2]
[311574676,1705252304629,-2542.75,0.0003178,2]
[311574677,1705252304638,-1000.0,0.0003178,2]
[311574678,1705252304648,-503.34438567,0.0003178,2]
[311574679,1705252304658,-842.4,0.0003178,2]
[311574680,1705252304668,-500.0,0.0003178,2]
[311574681,1705252304677,-520.32315828,0.0003178,2]
[311574682,1705252304686,-500.0,0.0003178,2]
[311574683,1705252304696,-1525.23,0.0003178,2]
[311574684,1705252304705,-500.0,0.0003178,2]
[311574685,1705252304714,-1991.27,0.0003178,2]
[311574686,1705252304723,-500.0,0.0003178,2]
[311574687,1705252304732,-500.0,0.0003178,2]
[311574688,1705252304742,-726.91,0.0003178,2]
[311574689,1705252304751,-681.84,0.0003178,2]
[311574690,1705252304765,-1443.03,0.0003178,2]
[311574691,1705252304774,-1460.0,0.0003178,2]
[311574692,1705252304783,-500.0,0.0003178,2]
[311574693,1705252304793,-1061.14,0.0003178,2]
[311574694,1705252304802,-1092.47,0.0003178,2]
[311574695,1705252304813,-523.51552795,0.0003178,2]
[311574696,1705252304823,-1128.45,0.0003178,2]
[311574697,1705252304833,-500.0,0.0003178,2]
[311574698,1705252304843,-930.07,0.0003178,2]
[311574699,1705252304853,-792.09,0.0003178,2]
[311574700,1705252304863,-804.22,0.0003178,2]
[311574701,1705252304872,-575.58,0.0003178,2]
[311574702,1705252304881,-1171.52,0.0003178,2]
[311574703,1705252304890,-560.99,0.0003178,2]
[311574704,1705252304899,-500.0,0.0003178,2]
[311574705,1705252304908,-500.0,0.0003178,2]
[311574706,1705252304917,-450.91248282,0.0003178,2]
[311574707,1705252304926,-500.0,0.0003178,2]
[311574708,1705252304935,-1868.49,0.0003178,2]
[311574709,1705252304945,-706.1,0.0003178,2]
[311574710,1705252304954,-538.67,0.0003178,2]
[311574711,1705252304963,-1559.96,0.0003178,2]
[311574712,1705252304972,-954.86,0.0003178,2]
[311574713,1705252304982,-526.27626888,0.0003178,2]
[311574714,1705252304992,-918.75,0.0003178,2]
[311574715,1705252305001,-500.0,0.0003178,2]
[311574716,1705252305011,-2188.29,0.0003178,2]
[311574717,1705252305020,-500.0,0.0003178,2]
[311574718,1705252305030,-986.25,0.0003178,2]
[311574719,1705252305039,-1308.37,0.0003178,2]
[311574720,1705252305048,-591.33,0.0003178,2]
[311574721,1705252305057,-913.77,0.0003178,2]
[311574722,1705252305066,-500.0,0.0003178,2]
[311574723,1705252305075,-500.0,0.0003178,2]
[311574724,1705252305084,-500.0,0.0003178,2]
[311574725,1705252305092,-815.77,0.0003178,2]
[311574726,1705252305103,-500.0,0.0003178,2]
[311574727,1705252305112,-500.0,0.0003178,2]
[311574728,1705252305122,-500.0,0.0003178,2]
[311574729,1705252305131,-500.0,0.0003178,2]
[311574730,1705252305140,-1262.51,0.0003178,2]
[311574731,1705252305150,-500.0,0.0003178,2]
[311574732,1705252305160,-500.0,0.0003178,2]
[311574733,1705252305169,-1000.0,0.0003178,2]
[311574734,1705252305178,-1331.58,0.0003178,2]
[311574735,1705252305188,-1516.94,0.0003178,2]
[311574736,1705252305196,-562.07,0.0003178,2]
[311574737,1705252305205,-629.6,0.0003178,2]
[311574738,1705252305214,-1331.6,0.0003178,2]
[311574739,1705252305224,-643.99,0.0003178,2]
[311574740,1705252305233,-748.5,0.0003178,2]
[311574741,1705252305243,-809.43,0.0003178,2]
[311574742,1705252305253,-1249.64,0.0003178,2]
[311574743,1705252305263,-500.0,0.0003178,2]
[311574744,1705252305272,-500.0,0.0003178,2]
[311574745,1705252305282,-730.81,0.0003178,2]
[311574746,1705252305292,-1260.42,0.0003178,2]
[311574747,1705252305302,-977.41,0.0003178,2]
[311574748,1705252305311,-500.0,0.0003178,2]
[311574749,1705252305320,-706.44,0.0003178,2]
[311574750,1705252305329,-704.42,0.0003178,2]
[311574751,1705252305339,-500.0,0.0003178,2]
[311574752,1705252305347,-1054.04,0.0003178,2]
[311574753,1705252305357,-500.0,0.0003178,2]
[311574754,1705252305370,-159.43642636,0.0003178,2]
[311574755,1705252305379,-551.08039314,0.0003178,2]
[311574756,1705252305389,-500.0,0.0003178,2]
[311574757,1705252305398,-1099.5,0.0003178,2]
[311574758,1705252305408,-500.0,0.0003178,2]
[311574759,1705252305418,-500.0,0.0003178,2]
[311574760,1705252305427,-500.0,0.0003178,2]
[311574761,1705252305436,-743.27,0.0003178,2]
[311574762,1705252305446,-835.81,0.0003178,2]
[311574763,1705252305455,-820.16,0.0003178,2]
[311574764,1705252305464,-500.7,0.0003178,2]
[311574765,1705252305474,-514.13,0.0003178,2]
[311574766,1705252305484,-854.02,0.0003178,2]
[311574767,1705252305494,-1035.25,0.0003178,2]
[311574768,1705252305504,-2187.41,0.0003178,2]
[311574769,1705252305513,-500.0,0.0003178,2]
[311574770,1705252305523,-746.89,0.0003178,2]
[311574771,1705252305534,-500.0,0.0003178,2]
[311574772,1705252305544,-1874.06,0.0003178,2]
[311574773,1705252305553,-500.0,0.0003178,2]
[311574774,1705252305563,-500.0,0.0003178,2]
[311574775,1705252305573,-1599.15,0.0003178,2]
[311574776,1705252305583,-500.0,0.0003178,2]
[311574777,1705252305593,-500.0,0.0003178,2]
[311574778,1705252305602,-2449.88,0.0003178,2]
[311574779,1705252305612,-816.92,0.0003178,2]
[311574780,1705252305622,-500.0,0.0003178,2]
[311574781,1705252305631,-607.62,0.0003178,2]
[311574782,1705252305642,-500.0,0.0003178,2]
[311574783,1705252305652,-1717.02,0.0003178,2]
[311574784,1705252305662,-500.0,0.0003178,2]
[311574785,1705252305672,-500.0,0.0003178,2]
[311574786,1705252305681,-500.0,0.0003178,2]
[311574787,1705252305692,-846.57,0.0003178,2]
[311574788,1705252305703,-585.51,0.0003178,2]
[311574789,1705252305713,-1192.35,0.0003178,2]
[311574790,1705252305722,-556.01,0.0003178,2]
[311574791,1705252305731,-500.0,0.0003178,2]
[311574792,1705252305741,-311.49,0.0003178,2]
[311574793,1705252305752,-1217.56,0.0003178,2]
[311574794,1705252305769,-753.23,0.0003178,2]
[311574795,1705252305780,-564.68,0.0003178,2]
[311574796,1705252305790,-1646.67,0.0003178,2]
[311574797,1705252305800,-2611.38,0.0003178,2]
[311574798,1705252305810,-500.0,0.0003178,2]
[311574799,1705252305820,-500.0,0.0003178,2]
[311574800,1705252305830,-602.69,0.0003178,2]
[311574801,1705252305841,-500.0,0.0003178,2]
[311574802,1705252305851,-2089.38,0.0003178,2]
[311574803,1705252305860,-500.0,0.0003178,2]
[311574804,1705252305870,-1435.9,0.0003178,2]
[311574805,1705252305879,-954.59,0.0003178,2]
[311574806,1705252305889,-1925.77,0.0003178,2]
[311574807,1705252305899,-500.0,0.0003178,2]
[311574808,1705252305909,-652.19,0.0003178,2]
[311574809,1705252305919,-552.02,0.0003178,2]
[311574810,1705252305929,-500.0,0.0003178,2]
[311574811,1705252305939,-1686.3,0.0003178,2]
[311574812,1705252305949,-531.8,0.0003178,2]
[311574813,1705252305960,-500.0,0.0003178,2]
[311574814,1705252305970,-539.37965987,0.0003178,2]
[311574815,1705252305981,-1006.64,0.0003178,2]
[311574816,1705252305992,-500.0,0.0003178,2]
[311574817,1705252306001,-500.0,0.0003178,2]
[311574818,1705252306012,-500.0,0.0003178,2]
[311574819,1705252306022,-500.0,0.0003178,2]
[311574820,1705252306032,-500.0,0.0003178,2]
[311574821,1705252306041,-500.0,0.0003178,2]
[311574822,1705252306051,-500.0,0.0003178,2]
[311574823,1705252306061,-500.0,0.0003178,2]
[311574824,1705252306071,-637.36245412,0.0003178,2]
[311574825,1705252306080,-4875.25,0.0003178,2]
[311574826,1705252306090,-994.5,0.0003178,2]
[311574827,1705252306099,-632.51,0.0003178,2]
[311574828,1705252306109,-1458.22,0.0003178,2]
[311574829,1705252306119,-540.94,0.0003178,2]
[311574830,1705252306129,-614.36105976,0.0003178,2]
[311574831,1705252306139,-556.06,0.0003178,2]
[311574832,1705252306149,-1282.02,0.0003178,2]
[311574833,1705252306161,-500.0,0.0003178,2]
[311574834,1705252306171,-1042.49,0.0003178,2]
[311574835,1705252306181,-1099.02,0.0003178,2]
[311574836,1705252306190,-500.0,0.0003178,2]
[311574837,1705252306200,-2344.08,0.0003178,2]
[311574838,1705252306210,-1216.07,0.0003178,2]
[311574839,1705252306220,-522.91,0.0003178,2]
[311574840,1705252306230,-500.0,0.0003178,2]
[311574841,1705252306239,-600.25,0.0003178,2]
[311574842,1705252306249,-500.0,0.0003178,2]
[311574843,1705252306259,-1971.59,0.0003178,2]
[311574844,1705252306268,-722.24,0.0003178,2]
[311574845,1705252306279,-768.64,0.0003178,2]
[311574846,1705252306288,-1123.73,0.0003178,2]
[311574847,1705252306298,-625.0,0.0003178,2]
[311574848,1705252306308,-881.92,0.0003178,2]
[311574849,1705252306318,-500.0,0.0003178,2]
[311574850,1705252306328,-796.46,0.0003178,2]
[311574851,1705252306337,-1228.35,0.0003178,2]
[311574852,1705252306347,-179.51018616,0.0003178,2]
[311574853,1705252306356,-968.5,0.0003178,2]
[311574854,1705252306366,-912.91,0.0003178,2]
[311574855,1705252306376,-753.36,0.0003178,2]
[311574856,1705252306385,-1538.92,0.0003178,2]
[311574857,1705252306395,-35539.27,0.0003178,2]
[311574858,1705252306405,-2773.15,0.0003178,2]
[311574859,1705252306415,-845.72,0.0003178,2]
[311574860,1705252306425,-500.0,0.0003178,2]
[311574861,1705252306434,-500.0,0.0003178,2]
[311574862,1705252306444,-593.33,0.0003178,2]
[311574863,1705252306454,-1360.03,0.0003178,2]
[311574864,1705252306463,-500.0,0.0003178,2]
[311574865,1705252306473,-4393.52,0.0003178,2]
[311574866,1705252306483,-907.99,0.0003178,2]
[311574867,1705252306492,-1000.0,0.0003178,2]
[311574868,1705252306501,-500.0,0.0003178,2]
[311574869,1705252306511,-500.0,0.0003178,2]
[311574870,1705252306521,-1520.18,0.0003178,2]
[311574871,1705252306532,-1233.91,0.0003178,2]
[311574872,1705252306542,-381.45371388,0.0003178,2]
[311574873,1705252306551,-746.94,0.0003178,2]
[311574874,1705252306561,-977.1,0.0003178,2]
[311574875,1705252306570,-1579.37,0.0003178,2]
[311574876,1705252306580,-500.0,0.0003178,2]
[311574877,1705252306590,-540.78,0.0003178,2]
[311574878,1705252306599,-797.54,0.0003178,2]
[311574879,1705252306609,-500.0,0.0003178,2]
[311574880,1705252306619,-500.0,0.0003178,2]
[311574881,1705252306629,-2254.7,0.0003178,2]
[311574882,1705252306639,-926.27,0.0003178,2]
[311574883,1705252306649,-500.0,0.0003178,2]
[311574884,1705252306659,-2209.2,0.0003178,2]
[311574885,1705252306668,-500.0,0.0003178,2]
[311574886,1705252306678,-1514.05,0.0003178,2]
[311574887,1705252306691,-500.0,0.0003178,2]
[311574888,1705252306701,-2556.16,0.0003178,2]
[311574889,1705252306711,-1504.88,0.0003178,2]
[311574890,1705252306722,-500.0,0.0003178,2]
[311574891,1705252306731,-2483.68,0.0003178,2]
[311574892,1705252306742,-574.24,0.0003178,2]
[311574893,1705252306752,-500.0,0.0003178,2]
[311574894,1705252306762,-1018.17,0.0003178,2]
[311574895,1705252306772,-500.0,0.0003178,2]
[311574896,1705252306784,-643.61,0.0003178,2]
[311574897,1705252306794,-543.2,0.0003178,2]
[311574898,1705252306804,-1223.0,0.0003178,2]
[311574899,1705252306814,-2697.47,0.0003178,2]
[311574900,1705252306824,-847.84,0.0003178,2]
[311574901,1705252306834,-3144.48,0.0003178,2]
[311574902,1705252306844,-500.0,0.0003178,2]
[311574903,1705252306855,-1690.9,0.0003178,2]
[311574904,1705252306865,-4195.55,0.0003178,2]
[311574905,1705252306876,-15637.48,0.0003178,2]
[311574906,1705252306886,-7596.12,0.0003178,2]
[311574907,1705252306896,-555.29326058,0.0003178,2]
[311574908,1705252306907,-13163.35,0.0003178,2]
[311574909,1705252306917,-2237.23,0.0003178,2]
[311574910,1705252306927,-500.0,0.0003178,2]
[311574911,1705252306937,-500.0,0.0003178,2]
[311574912,1705252306947,-500.0,0.0003178,2]
[311574913,1705252306957,-2501.43,0.0003178,2]
[311574914,1705252306967,-602.22,0.0003178,2]
[311574915,1705252306978,-528.44471127,0.0003178,2]
[311574916,1705252306987,-500.0,0.0003178,2]
[311574917,1705252306997,-4038.49,0.0003178,2]
[311574918,1705252307007,-2052.95,0.0003178,2]
[311574919,1705252307018,-9329.65,0.0003178,2]
[311574920,1705252307030,-500.0,0.0003178,2]
[311574921,1705252307040,-500.0,0.0003178,2]
[311574922,1705252307051,-500.0,0.0003178,2]
[311574923,1705252307062,-2046.19,0.0003178,2]
[311574924,1705252307074,-500.0,0.0003178,2]
[311574925,1705252307083,-500.0,0.0003178,2]
[311574926,1705252307093,-5406.14,0.0003178,2]
[311574927,1705252307103,-500.0,0.0003178,2]
[311574928,1705252307113,-500.0,0.0003178,2]
[311574929,1705252307123,-6443.32,0.0003178,2]
[311574930,1705252307134,-2591.43,0.0003178,2]
[311574931,1705252307143,-500.0,0.0003178,2]
[311574932,1705252307153,-301.74054114,0.0003178,2]
[311574933,1705252307164,-500.0,0.0003178,2]
[311574934,1705252307174,-500.0,0.0003178,2]
[311574935,1705252307184,-2526.32,0.0003178,2]
[311574936,1705252307194,-3495.11,0.0003178,2]
[311574937,1705252307204,-500.0,0.0003178,2]
[311574938,1705252307214,-1152.89,0.0003178,2]
[311574939,1705252307224,-1951.59,0.0003178,2]
[311574940,1705252307235,-500.0,0.0003178,2]
[311574941,1705252307245,-1678.34,0.0003178,2]
[311574942,1705252307255,-4453.87,0.0003178,2]
[311574943,1705252307265,-1430.39,0.0003178,2]
[311574944,1705252307275,-7026.91,0.0003178,2]
[311574945,1705252307285,-1018.23,0.0003178,2]
[311574946,1705252307295,-1925.55,0.0003178,2]
[311574947,1705252307306,-639.77,0.0003178,2]
[311574948,1705252307315,-858.04,0.0003178,2]
[311574949,1705252307325,-1494.12,0.0003178,2]
[311574950,1705252307336,-3493.55,0.0003178,2]
[311574951,1705252307346,-500.0,0.0003178,2]
[311574952,1705252307356,-500.0,0.0003178,2]
[311574953,1705252307366,-1678.6,0.0003178,2]
[311574954,1705252307377,-500.0,0.0003178,2]
[311574955,1705252307387,-500.0,0.0003178,2]
[311574956,1705252307397,-500.0,0.0003178,2]
[311574957,1705252307407,-500.0,0.0003178,2]
[311574958,1705252307418,-539.82,0.0003178,2]
[311574959,1705252307428,-1647.84,0.0003178,2]
[311574960,1705252307438,-534.79,0.0003178,2]
[311574961,1705252307448,-500.0,0.0003178,2]
[311574962,1705252307458,-2587.79,0.0003178,2]
[311574963,1705252307467,-500.0,0.0003178,2]
[311574964,1705252307477,-797.9,0.0003178,2]
[311574965,1705252307487,-1743.36,0.0003178,2]
[311574966,1705252307497,-500.0,0.0003178,2]
[311574967,1705252307507,-500.0,0.0003178,2]
[311574968,1705252307517,-570.38,0.0003178,2]
[311574969,1705252307528,-3574.89,0.0003178,2]
[311574970,1705252307538,-2513.83,0.0003178,2]
[311574971,1705252307548,-3210.63,0.0003178,2]
[311574972,1705252307558,-500.0,0.0003178,2]
[311574973,1705252307568,-2062.81,0.0003178,2]
[311574974,1705252307578,-747.77,0.0003178,2]
[311574975,1705252307591,-561.915417,0.0003178,2]
[311574976,1705252307601,-674.96,0.0003178,2]
[311574977,1705252307612,-4664.45,0.0003178,2]
[311574978,1705252307621,-1040.49,0.0003178,2]
[311574979,1705252307630,-2377.35,0.0003178,2]
[311574980,1705252307640,-12144.81,0.0003178,2]
[311574981,1705252307650,-500.0,0.0003178,2]
[311574982,1705252307660,-546.04,0.0003178,2]
[311574983,1705252307670,-500.0,0.0003178,2]
[311574984,1705252307680,-7506.39,0.0003178,2]
[311574985,1705252307689,-749.5,0.0003178,2]
[311574986,1705252307699,-536.52,0.0003178,2]
[311574987,1705252307709,-2599.12,0.0003178,2]
[311574988,1705252307719,-588.11,0.0003178,2]
[311574989,1705252307729,-559.01,0.0003178,2]
[311574990,1705252307739,-1465.44,0.0003178,2]
[311574991,1705252307750,-6554.82,0.0003178,2]
[311574992,1705252307762,-1329.38,0.0003178,2]
[311574993,1705252307772,-1946.34,0.0003178,2]
[311574994,1705252307783,-500.0,0.0003178,2]
[311574995,1705252307794,-500.0,0.0003178,2]
[311574996,1705252307804,-5430.89,0.0003178,2]
[311574997,1705252307813,-1136.62,0.0003178,2]
[311574998,1705252307823,-500.0,0.0003178,2]
[311574999,1705252307835,-796.83,0.0003178,2]
[311575000,1705252307845,-2322.96,0.0003178,2]
[311575001,1705252307856,-61633.02,0.0003178,2]
[311575002,1705252307866,-500.0,0.0003178,2]
[311575003,1705252307876,-500.0,0.0003178,2]
[311575004,1705252307886,-1778.55,0.0003178,2]
[311575005,1705252307896,-1790.83,0.0003178,2]
[311575006,1705252307906,-500.0,0.0003178,2]
[311575007,1705252307916,-2356.56,0.0003178,2]
[311575008,1705252307928,-22604.09,0.0003178,2]
[311575009,1705252307938,-869.55,0.0003178,2]
[311575010,1705252307948,-500.0,0.0003178,2]
[311575011,1705252307958,-1980.57,0.0003178,2]
[311575012,1705252307968,-4074.52,0.0003178,2]
[311575013,1705252307977,-2141.21,0.0003178,2]
[311575014,1705252307987,-5195.33,0.0003178,2]
[311575015,1705252307997,-1229.8,0.0003178,2]
[311575016,1705252308010,-1076.46,0.0003178,2]
[311575017,1705252308021,-500.0,0.0003178,2]
[311575018,1705252308031,-1807.57,0.0003178,2]
[311575019,1705252308041,-4351.31,0.0003178,2]
[311575020,1705252308051,-7640.79,0.0003178,2]
[311575021,1705252308061,-1715.26,0.0003178,2]
[311575022,1705252308071,-902.59,0.0003178,2]
[311575023,1705252308082,-500.0,0.0003178,2]
[311575024,1705252308092,-1082.75,0.0003178,2]
[311575025,1705252308101,-592.57,0.0003178,2]
[311575026,1705252308114,-344.38477677,0.0003178,2]
[311575027,1705252308125,-500.0,0.0003178,2]
[311575028,1705252308135,-2984.29,0.0003178,2]
[311575029,1705252308146,-3610.33,0.0003178,2]
[311575030,1705252308157,-4251.43,0.0003178,2]
[311575031,1705252308167,-4594.32,0.0003178,2]
[311575032,1705252308177,-1696.28,0.0003178,2]
[311575033,1705252308189,-1901.97,0.0003178,2]
[311575034,1705252308200,-500.0,0.0003178,2]
[311575035,1705252308480,-22955.6,0.0003178,2]
[311575036,1705252308520,-904.7,0.0003178,2]
[311575037,1705252308531,-1364.34,0.0003178,2]
[311575038,1705252308541,-833.48,0.0003178,2]
[311575039,1705252308551,-500.0,0.0003178,2]
[311575040,1705252308560,-1054.06,0.0003178,2]
[311575041,1705252308570,-517.44,0.0003178,2]
[311575042,1705252308579,-3356.05,0.0003178,2]
[311575043,1705252308588,-2618.39,0.0003178,2]
[311575044,1705252308597,-1158.82,0.0003178,2]
[311575045,1705252308606,-708.64,0.0003178,2]
[311575046,1705252308616,-500.0,0.0003178,2]
[311575047,1705252308625,-6306.53,0.0003178,2]
[311575048,1705252308634,-3491.81,0.0003178,2]
[311575049,1705252308644,-877.92,0.0003178,2]